fUST/lending_fUST_20250921
["ID","MTS","AMOUNT","RATE_DAILY","PERIOD"]
[386705551,1758463846027,-500.0,0.0002,2]
[386705553,1758463846036,-151.10286639,0.0002,2]
[386705555,1758463846046,-151.31375165,0.0002,2]
[386705558,1758463846055,-151.12302328,0.0002,2]
[386705560,1758463846065,-492.44740963,0.0002,2]
[386705562,1758463846074,-480.0,0.0002,2]
[386705564,1758463846084,-486.10266892,0.0002,2]
[386705566,1758463846094,-480.0,0.0002,2]
[386705568,1758463846104,-480.0,0.0002,2]
[386705569,1758463846114,-480.0,0.0002,2]
[386705571,1758463846124,-480.0,0.0002,2]
[386705573,1758463846133,-480.0,0.0002,2]
[386705575,1758463846142,-480.0,0.0002,2]
[386705577,1758463846152,-480.0,0.0002,2]
[386705579,1758463846161,-480.0,0.0002,2]
[386705581,1758463846171,-480.0,0.0002,2]
[386705583,1758463846181,-480.0,0.0002,2]
[386705585,1758463846190,-480.0,0.0002,2]
[386705587,1758463846200,-480.0,0.0002,2]
[386705590,1758463846209,-480.0,0.0002,2]
[386705592,1758463846219,-480.0,0.0002,2]
[386705593,1758463846229,-480.0,0.0002,2]
[386705596,1758463846239,-480.0,0.0002,2]
[386705598,1758463846248,-480.0,0.0002,2]
[386705599,1758463846258,-480.0,0.0002,2]
[386705602,1758463846267,-515.02431158,0.0002,2]
[386705603,1758463846276,-480.0,0.0002,2]
[386705605,1758463846286,-480.0,0.0002,2]
[386705607,1758463846295,-480.0,0.0002,2]
[386705609,1758463846304,-614.28313034,0.0002,2]
[386705611,1758463846313,-480.0,0.0002,2]
[386705613,1758463846322,-316.63939869,0.0002,2]
[386705615,1758463846331,-480.0,0.0002,2]
[386705617,1758463846340,-480.0,0.0002,2]
[386705619,1758463846349,-488.94641156,0.0002,2]
[386705621,1758463846358,-828.55,0.0002,2]
[386705623,1758463846368,-566.64618465,0.0002,2]
[386705625,1758463846378,-480.0,0.0002,2]
[386705627,1758463846387,-480.0,0.0002,2]
[386705629,1758463846396,-1657.066154,0.0002,2]
[386705631,1758463846406,-480.0,0.0002,2]
[386705633,1758463846415,-480.0,0.0002,2]
[386705635,1758463846424,-480.0,0.0002,2]
[386705637,1758463846433,-1060.95,0.0002,2]
[386705639,1758463846442,-819.74,0.0002,2]
[386705641,1758463846451,-480.0,0.0002,2]
[386705643,1758463846460,-480.0,0.0002,2]
[386705645,1758463846469,-480.0,0.0002,2]
[386705647,1758463846479,-480.0,0.0002,2]
[386705648,1758463846489,-851.72,0.0002,2]
[386705649,1758463846500,-527.95415741,0.0002,2]
[386705650,1758463846510,-480.0,0.0002,2]
[386705651,1758463846519,-1058.66,0.0002,2]
[386705652,1758463846529,-480.0,0.0002,2]
[386705653,1758463846539,-8085.83,0.0002,2]
[386705654,1758463846548,-480.0,0.0002,2]
[386705655,1758463846557,-491.3761596,0.0002,2]
[386705656,1758463846569,-480.0,0.0002,2]
[386705657,1758463846579,-480.0,0.0002,2]
[386705658,1758463846588,-901.07,0.0002,2]
[386705659,1758463846598,-480.0,0.0002,2]
[386705660,1758463846607,-480.0,0.0002,2]
[386705661,1758463846617,-480.0,0.0002,2]
[386705662,1758463846626,-542.29824064,0.0002,2]
[386705663,1758463846636,-480.0,0.0002,2]
[386705664,1758463846645,-480.0,0.0002,2]
[386705665,1758463846655,-480.0,0.0002,2]
[386705666,1758463846664,-526.81,0.0002,2]
[386705667,1758463846674,-548.72,0.0002,2]
[386705668,1758463846683,-480.0,0.0002,2]
[386705669,1758463846695,-852.81,0.0002,2]
[386705670,1758463846704,-480.0,0.0002,2]
[386705671,1758463846713,-480.0,0.0002,2]
[386705672,1758463846722,-480.0,0.0002,2]
[386705673,1758463846731,-480.0,0.0002,2]
[386705674,1758463846740,-480.0,0.0002,2]
[386705675,1758463846749,-480.0,0.0002,2]
[386705676,1758463846758,-480.0,0.0002,2]
[386705677,1758463846767,-345.54669654,0.0002,2]
[386705678,1758463846776,-480.0,0.0002,2]
[386705679,1758463846786,-480.0,0.0002,2]
[386705680,1758463846795,-480.0,0.0002,2]
[386705681,1758463846804,-480.0,0.0002,2]
[386705682,1758463846813,-480.0,0.0002,2]
[386705683,1758463846822,-480.0,0.0002,2]
[386705684,1758463846832,-1362.79,0.0002,2]
[386705685,1758463846841,-480.0,0.0002,2]
[386705686,1758463846851,-480.0,0.0002,2]
[386705687,1758463846860,-480.0,0.0002,2]
[386705688,1758463846870,-565.65795806,0.0002,2]
[386705689,1758463846879,-480.0,0.0002,2]
[386705690,1758463846888,-480.0,0.0002,2]
[386705691,1758463846898,-480.0,0.0002,2]
[386705692,1758463846907,-480.0,0.0002,2]
[386705693,1758463846916,-973.64,0.0002,2]
[386705694,1758463846926,-480.0,0.0002,2]
[386705695,1758463846935,-480.0,0.0002,2]
[386705696,1758463846944,-480.0,0.0002,2]
[386705697,1758463846953,-760.49,0.0002,2]
[386705698,1758463846962,-1796.23,0.0002,2]
[386705699,1758463846971,-591.24,0.0002,2]
[386705700,1758463846980,-1269.68,0.0002,2]
[386705701,1758463846990,-1903.0,0.0002,2]
[386705702,1758463846999,-480.0,0.0002,2]
[386705703,1758463847009,-757.23,0.0002,2]
[386705704,1758463847018,-522.45435756,0.0002,2]
[386705705,1758463847028,-480.0,0.0002,2]
[386705706,1758463847037,-515.77131419,0.0002,2]
[386705707,1758463847046,-480.0,0.0002,2]
[386705708,1758463847055,-480.0,0.0002,2]
[386705709,1758463847065,-480.0,0.0002,2]
[386705710,1758463847074,-2787.44,0.0002,2]
[386705711,1758463847083,-480.0,0.0002,2]
[386705712,1758463847092,-480.0,0.0002,2]
[386705713,1758463847101,-480.0,0.0002,2]
[386705714,1758463847110,-4000.0,0.0002,4]
[386705715,1758463847120,-480.0,0.0002,2]
[386705716,1758463847129,-480.0,0.0002,2]
[386705717,1758463847139,-480.0,0.0002,2]
[386705718,1758463847149,-480.0,0.0002,2]
[386705719,1758463847159,-480.0,0.0002,2]
[386705720,1758463847168,-245.772284,0.0002,2]
[386705721,1758463847179,-1980.26,0.0002,2]
[386705722,1758463847189,-480.0,0.0002,2]
[386705723,1758463847199,-480.0,0.0002,2]
[386705724,1758463847207,-480.0,0.0002,2]
[386705725,1758463847219,-484.82,0.0002,2]
[386705726,1758463847229,-387.62033482,0.00020021,2]
[386705727,1758463847238,-471.5733539,0.00020021,2]
[386705728,1758463847248,-505.24288065,0.00020021,2]
[386705729,1758463847257,-1000.0,0.00020021,2]
[386705730,1758463847266,-1000.0,0.00020021,2]
[386705731,1758463847276,-1000.0,0.00020021,2]
[386705732,1758463847286,-1000.0,0.00020021,2]
[386705733,1758463847295,-1000.0,0.00020021,2]
[386705734,1758463847305,-823.43081564,0.00020021,2]
[386705735,1758463847314,-230.0,0.00020058,2]
[386705736,1758463847324,-553.0,0.00020188,2]
[386705737,1758463847333,-1336.05301091,0.000202,2]
[386705738,1758463847342,-404.62448614,0.00020204,2]
[386705739,1758463847353,-848.42763433,0.00020204,2]
[386705740,1758463847362,-160.0,0.00020204,2]
[386705741,1758463847373,-160.0,0.00020204,2]
[386705742,1758463847383,-417.15472785,0.00020204,2]
[386705743,1758463847393,-160.0,0.00020204,2]
[386705744,1758463847403,-233.52200025,0.00020204,2]
[386705745,1758463847413,-160.0,0.00020204,2]
[386705746,1758463847422,-160.0,0.00020204,2]
[386705747,1758463847431,-160.0,0.00020204,2]
[386705748,1758463847441,-160.0,0.00020204,2]
[386705749,1758463847451,-160.0,0.00020204,2]
[386705750,1758463847460,-160.0,0.00020204,2]
[386705751,1758463847470,-160.0,0.00020204,2]
[386705752,1758463847478,-553.0,0.00020251,2]
[386705753,1758463847487,-372.37900284,0.00020268,2]
[386705754,1758463847501,-1500.0,0.00020268,2]
[386705755,1758463847510,-1500.0,0.00020268,2]
[386705756,1758463847520,-155.87987351,0.00020269,2]
[386705757,1758463847529,-476.0,0.00020269,2]
[386705758,1758463847539,-500.0,0.00020273,2]
[386705759,1758463847548,-500.44203965,0.00020273,2]
[386705760,1758463847557,-500.0,0.00020273,2]
[386705761,1758463847566,-500.0,0.00020273,2]
[386705762,1758463847578,-632.71314353,0.00020273,2]
[386705763,1758463847587,-576.25571609,0.00020273,2]
[386705764,1758463847597,-480.0,0.00020273,2]
[386705765,1758463847606,-494.82842668,0.00020273,2]
[386705766,1758463847615,-583.2464814,0.00020273,2]
[386705767,1758463847625,-480.0,0.00020273,2]
[386705768,1758463847634,-480.0,0.00020273,2]
[386705769,1758463847643,-480.0,0.00020273,2]
[386705770,1758463847652,-480.0,0.00020273,2]
[386705771,1758463847661,-480.0,0.00020273,2]
[386705772,1758463847670,-480.0,0.00020273,2]
[386705774,1758463847680,-480.0,0.00020273,2]
[386705775,1758463847688,-316.79536455,0.00020273,2]
[386705777,1758463847697,-480.0,0.00020273,2]
[386705779,1758463847707,-480.0,0.00020273,2]
[386705781,1758463847716,-403.80446147,0.00020273,2]
[386705783,1758463847725,-480.0,0.00020273,2]
[386705785,1758463847734,-500.56870023,0.00020273,2]
[386705787,1758463847743,-480.0,0.00020273,2]
[386705789,1758463847752,-687.32402319,0.00020273,2]
[386705791,1758463847761,-480.0,0.00020273,2]
[386705793,1758463847771,-480.0,0.00020273,2]
[386705795,1758463847779,-480.0,0.00020273,2]
[386705797,1758463847789,-480.0,0.00020273,2]
[386705799,1758463847798,-480.0,0.00020273,2]
[386705801,1758463847807,-480.0,0.00020273,2]
[386705813,1758463847816,-480.0,0.00020273,2]
[386705816,1758463847930,-480.0,0.00020273,2]
[386705817,1758463847939,-480.0,0.00020273,2]
[386705819,1758463847948,-480.0,0.00020273,2]
[386705820,1758463847957,-480.0,0.00020273,2]
[386705821,1758463847967,-480.0,0.00020273,2]
[386705823,1758463847976,-828.55,0.00020273,2]
[386705825,1758463847985,-480.0,0.00020273,2]
[386705827,1758463847995,-480.0,0.00020273,2]
[386705828,1758463848004,-480.0,0.00020273,2]
[386705830,1758463848014,-519.82150617,0.00020273,2]
[386705832,1758463848023,-480.0,0.00020273,2]
[386705834,1758463848032,-1060.95,0.00020273,2]
[386705836,1758463848041,-819.74,0.00020273,2]
[386705838,1758463848051,-480.0,0.00020273,2]
[386705840,1758463848060,-480.0,0.00020273,2]
[386705842,1758463848069,-480.0,0.00020273,2]
[386705844,1758463848079,-480.0,0.00020273,2]
[386705846,1758463848089,-851.72,0.00020273,2]
[386705848,1758463848099,-480.0,0.00020273,2]
[386705849,1758463848108,-1058.66,0.00020273,2]
[386705850,1758463848118,-480.0,0.00020273,2]
[386705851,1758463848128,-8085.83,0.00020273,2]
[386705852,1758463848138,-480.0,0.00020273,2]
[386705853,1758463848150,-480.0,0.00020273,2]
[386705854,1758463848160,-480.0,0.00020273,2]
[386705855,1758463848170,-901.07,0.00020273,2]
[386705856,1758463848180,-480.0,0.00020273,2]
[386705857,1758463848190,-480.0,0.00020273,2]
[386705858,1758463848200,-490.47283069,0.00020273,2]
[386705859,1758463848209,-480.0,0.00020273,2]
[386705860,1758463848219,-480.0,0.00020273,2]
[386705861,1758463848229,-480.0,0.00020273,2]
[386705862,1758463848239,-526.81,0.00020273,2]
[386705863,1758463848250,-548.72,0.00020273,2]
[386705864,1758463848260,-480.0,0.00020273,2]
[386705865,1758463848269,-852.81,0.00020273,2]
[386705866,1758463848279,-480.0,0.00020273,2]
[386705867,1758463848289,-480.0,0.00020273,2]
[386705868,1758463848301,-480.0,0.00020273,2]
[386705869,1758463848311,-480.0,0.00020273,2]
[386705870,1758463848321,-480.0,0.00020273,2]
[386705871,1758463848331,-480.0,0.00020273,2]
[386705872,1758463848341,-480.0,0.00020273,2]
[386705873,1758463848350,-480.0,0.00020273,2]
[386705874,1758463848360,-480.0,0.00020273,2]
[386705875,1758463848370,-480.0,0.00020273,2]
[386705877,1758463848380,-501.39005476,0.00020273,2]
[386705879,1758463848389,-480.0,0.00020273,2]
[386705881,1758463848399,-480.0,0.00020273,2]
[386705883,1758463848408,-1362.79,0.00020273,2]
[386705885,1758463848418,-480.0,0.00020273,2]
[386705887,1758463848427,-480.0,0.00020273,2]
[386705889,1758463848437,-603.47736517,0.00020273,2]
[386705891,1758463848446,-480.0,0.00020273,2]
[386705893,1758463848456,-480.0,0.00020273,2]
[386705894,1758463848466,-480.0,0.00020273,2]
[386705896,1758463848476,-973.64,0.00020273,2]
[386705898,1758463848485,-499.4,0.00020273,2]
[386705900,1758463848498,-480.0,0.00020273,2]
[386705902,1758463848508,-480.0,0.00020273,2]
[386705904,1758463848518,-760.49,0.00020273,2]
[386705906,1758463848528,-1796.23,0.00020273,2]
[386705908,1758463848539,-591.24,0.00020273,2]
[386705910,1758463848548,-1269.68,0.00020273,2]
[386705912,1758463848558,-1903.0,0.00020273,2]
[386705914,1758463848567,-468.20860658,0.00020273,2]
[386705916,1758463848579,-757.23,0.00020273,2]
[386705918,1758463848588,-480.0,0.00020273,2]
[386705920,1758463848598,-480.0,0.00020273,2]
[386705922,1758463848607,-480.0,0.00020273,2]
[386705924,1758463848616,-480.0,0.00020273,2]
[386705926,1758463848626,-2787.44,0.00020273,2]
[386705928,1758463848635,-480.0,0.00020273,2]
[386705930,1758463848644,-480.0,0.00020273,2]
[386705932,1758463848654,-480.0,0.00020273,2]
[386705934,1758463848664,-480.0,0.00020273,2]
[386705936,1758463848673,-480.0,0.00020273,2]
[386705938,1758463848683,-480.0,0.00020273,2]
[386705940,1758463848692,-480.0,0.00020273,2]
[386705942,1758463848702,-480.0,0.00020273,2]
[386705944,1758463848711,-1980.26,0.00020273,2]
[386705946,1758463848720,-480.0,0.00020273,2]
[386705948,1758463848730,-480.0,0.00020273,2]
[386705950,1758463848740,-484.82,0.00020273,2]
[386705952,1758463848749,-500.0,0.00020274,2]
[386705954,1758463848758,-500.0,0.00020274,2]
[386705956,1758463848768,-500.0,0.00020274,2]
[386705958,1758463848777,-500.65471073,0.00020274,2]
[386705960,1758463848787,-165.78532979,0.00020274,2]
[386705962,1758463848796,-151.0,0.00020274,2]
[386705964,1758463848805,-151.0,0.00020274,2]
[386705966,1758463848814,-500.0,0.00020274,2]
[386705968,1758463848825,-230.0,0.0002031,2]
[386705970,1758463848834,-1000.0,0.00020321,2]
[386705972,1758463848844,-1336.05301091,0.000204,2]
[386705974,1758463848854,-230.0,0.00020411,2]
[386705976,1758463848866,-153.0,0.00020438,2]
[386705978,1758463848875,-153.0,0.00020438,2]
[386705980,1758463848886,-153.0,0.00020438,2]
[386705982,1758463848896,-153.0,0.00020438,2]
[386705984,1758463848907,-153.0,0.00020438,2]
[386705986,1758463848916,-153.0,0.00020438,2]
[386705988,1758463848926,-7264.62,0.00020451,2]
[386705990,1758463848936,-44652.28174792,0.000205,2]
[386705992,1758463848945,-151.0,0.000205,4]
[386705994,1758463848955,-1000.0,0.000205,2]
[386705996,1758463848964,-476.0,0.00020543,2]
[386705998,1758463848973,-480.0,0.00020547,2]
[386706000,1758463848983,-480.0,0.00020547,2]
[386706002,1758463848992,-480.0,0.00020547,2]
[386706004,1758463849001,-216.85,0.00020547,2]
[386706006,1758463849010,-480.0,0.00020547,2]
[386706008,1758463849020,-480.0,0.00020547,2]
[386706010,1758463849029,-480.0,0.00020547,2]
[386706012,1758463849039,-480.0,0.00020547,2]
[386706014,1758463849049,-210.22,0.00020547,2]
[386706016,1758463849058,-480.0,0.00020547,2]
[386706018,1758463849068,-480.0,0.00020547,2]
[386706020,1758463849077,-463.23459873,0.00020547,2]
[386706022,1758463849087,-480.0,0.00020547,2]
[386706024,1758463849096,-480.0,0.00020547,2]
[386706026,1758463849106,-480.0,0.00020547,2]
[386706028,1758463849116,-480.0,0.00020547,2]
[386706030,1758463849125,-480.0,0.00020547,2]
[386706032,1758463849134,-480.0,0.00020547,2]
[386706034,1758463849144,-480.0,0.00020547,2]
[386706036,1758463849153,-480.0,0.00020547,2]
[386706038,1758463849162,-828.55,0.00020547,2]
[386706039,1758463849172,-480.0,0.00020547,2]
[386706041,1758463849182,-480.0,0.00020547,2]
[386706043,1758463849191,-480.0,0.00020547,2]
[386706045,1758463849201,-1060.95,0.00020547,2]
[386706047,1758463849211,-819.74,0.00020547,2]
[386706049,1758463849220,-259.37439466,0.00020547,2]
[386706051,1758463849230,-480.0,0.00020547,2]
[386706053,1758463849240,-480.0,0.00020547,2]
[386706055,1758463849249,-480.0,0.00020547,2]
[386706057,1758463849259,-851.72,0.00020547,2]
[386706059,1758463849268,-480.0,0.00020547,2]
[386706061,1758463849277,-1058.66,0.00020547,2]
[386706063,1758463849287,-530.73459068,0.00020547,2]
[386706065,1758463849296,-8085.83,0.00020547,2]
[386706067,1758463849306,-480.0,0.00020547,2]
[386706069,1758463849316,-480.0,0.00020547,2]
[386706071,1758463849325,-480.0,0.00020547,2]
[386706073,1758463849335,-901.07,0.00020547,2]
[386706075,1758463849344,-480.0,0.00020547,2]
[386706077,1758463849354,-476.30493954,0.00020547,2]
[386706079,1758463849363,-480.0,0.00020547,2]
[386706081,1758463849373,-480.0,0.00020547,2]
[386706083,1758463849384,-480.0,0.00020547,2]
[386706085,1758463849393,-526.81,0.00020547,2]
[386706087,1758463849403,-548.72,0.00020547,2]
[386706089,1758463849412,-480.0,0.00020547,2]
[386706091,1758463849421,-852.81,0.00020547,2]
[386706092,1758463849430,-480.0,0.00020547,2]
[386706094,1758463849439,-480.0,0.00020547,2]
[386706097,1758463849449,-388.93709765,0.00020547,2]
[386706099,1758463849468,-423.38,0.00020547,2]
[386706102,1758463849479,-480.0,0.00020547,2]
[386706104,1758463849488,-480.0,0.00020547,2]
[386706106,1758463849502,-480.0,0.00020547,2]
[386706108,1758463849512,-626.02041284,0.00020547,2]
[386706110,1758463849522,-480.0,0.00020547,2]
[386706112,1758463849533,-480.0,0.00020547,2]
[386706114,1758463849543,-480.0,0.00020547,2]
[386706116,1758463849553,-480.0,0.00020547,2]
[386706118,1758463849563,-1362.79,0.00020547,2]
[386706120,1758463849574,-480.0,0.00020547,2]
[386706122,1758463849584,-480.0,0.00020547,2]
[386706124,1758463849593,-480.0,0.00020547,2]
[386706126,1758463849603,-480.0,0.00020547,2]
[386706128,1758463849613,-480.0,0.00020547,2]
[386706130,1758463849623,-973.64,0.00020547,2]
[386706132,1758463849633,-480.0,0.00020547,2]
[386706134,1758463849643,-760.49,0.00020547,2]
[386706136,1758463849652,-1796.23,0.00020547,2]
[386706138,1758463849662,-591.24,0.00020547,2]
[386706140,1758463849672,-1269.68,0.00020547,2]
[386706142,1758463849681,-1903.0,0.00020547,2]
[386706144,1758463849691,-757.23,0.00020547,2]
[386706146,1758463849700,-480.0,0.00020547,2]
[386706148,1758463849710,-480.0,0.00020547,2]
[386706150,1758463849719,-480.0,0.00020547,2]
[386706152,1758463849729,-480.0,0.00020547,2]
[386706154,1758463849739,-2787.44,0.00020547,2]
[386706156,1758463849748,-480.0,0.00020547,2]
[386706158,1758463849758,-480.0,0.00020547,2]
[386706160,1758463849768,-480.0,0.00020547,2]
[386706162,1758463849777,-480.0,0.00020547,2]
[386706164,1758463849787,-480.0,0.00020547,2]
[386706166,1758463849797,-480.0,0.00020547,2]
[386706168,1758463849806,-480.0,0.00020547,2]
[386706170,1758463849816,-480.0,0.00020547,2]
[386706172,1758463849826,-1980.26,0.00020547,2]
[386706175,1758463849836,-480.0,0.00020547,2]
[386706177,1758463849846,-480.0,0.00020547,2]
[386706178,1758463849855,-484.82,0.00020547,2]
[386706180,1758463849866,-444.97173257,0.00020548,2]
[386706182,1758463849875,-500.0,0.00020548,2]
[386706185,1758463849885,-500.0,0.00020548,2]
[386706187,1758463849894,-500.0,0.00020548,2]
[386706189,1758463849904,-230.0,0.00020553,2]
[386706191,1758463849913,-1221.6932303,0.0002056,2]
[386706193,1758463849922,-230.0,0.00020561,2]
[386706195,1758463849931,-1500.0,0.00020568,2]
[386706197,1758463849941,-1500.0,0.00020568,2]
[386706199,1758463849950,-1500.0,0.00020568,2]
[386706200,1758463849960,-500.0,0.00020568,2]
[386706203,1758463849969,-1500.0,0.00020568,2]
[386706205,1758463849979,-1336.05301091,0.000206,2]
[386706206,1758463849988,-230.0,0.00020633,2]
[386706209,1758463849998,-230.0,0.00020646,2]
[386706210,1758463850007,-230.0,0.00020653,2]
[386706212,1758463850017,-151.0,0.000207,3]
[386706214,1758463850027,-1500.0,0.00020712,2]
[386706216,1758463850036,-500.0,0.00020761,2]
[386706218,1758463850046,-500.0,0.00020761,2]
[386706221,1758463850056,-500.0,0.00020761,2]
[386706223,1758463850066,-500.0,0.00020761,2]
[386706225,1758463850075,-500.0,0.00020761,2]
[386706227,1758463850085,-500.0,0.00020761,2]
[386706229,1758463850094,-500.0,0.00020761,2]
[386706231,1758463850104,-230.0,0.0002077,2]
[386706233,1758463850113,-160.0,0.00020796,3]
[386706235,1758463850123,-1336.05301091,0.000208,2]
[386706237,1758463850132,-328.0,0.00020807,2]
[386706239,1758463850143,-328.0,0.00020807,2]
[386706241,1758463850153,-328.0,0.00020807,2]
[386706243,1758463850162,-2000.0,0.00020816,2]
[386706245,1758463850171,-1000.01482618,0.00020816,2]
[386706247,1758463850181,-476.0,0.00020817,2]
[386706249,1758463850191,-500.0,0.0002082,2]
[386706251,1758463850200,-500.0,0.0002082,2]
[386706258,1758463850347,-222.53119266,0.00020821,2]
[386706260,1758463850357,-480.0,0.00020821,2]
[386706261,1758463850367,-480.0,0.00020821,2]
[386706262,1758463850376,-480.0,0.00020821,2]
[386706263,1758463850386,-480.0,0.00020821,2]
[386706264,1758463850395,-480.0,0.00020821,2]
[386706265,1758463850404,-480.0,0.00020821,2]
[386706266,1758463850413,-480.0,0.00020821,2]
[386706267,1758463850423,-480.0,0.00020821,2]
[386706268,1758463850433,-480.0,0.00020821,2]
[386706269,1758463850443,-502.89585119,0.00020821,2]
[386706270,1758463850452,-480.0,0.00020821,2]
[386706271,1758463850462,-480.0,0.00020821,2]
[386706272,1758463850471,-480.0,0.00020821,2]
[386706273,1758463850481,-480.0,0.00020821,2]
[386706274,1758463850492,-480.0,0.00020821,2]
[386706275,1758463850505,-480.0,0.00020821,2]
[386706276,1758463850514,-828.55,0.00020821,2]
[386706277,1758463850528,-480.0,0.00020821,2]
[386706278,1758463850539,-480.0,0.00020821,2]
[386706279,1758463850548,-480.0,0.00020821,2]
[386706280,1758463850557,-1060.95,0.00020821,2]
[386706281,1758463850568,-819.74,0.00020821,2]
[386706282,1758463850577,-480.0,0.00020821,2]
[386706283,1758463850587,-480.0,0.00020821,2]
[386706284,1758463850597,-480.0,0.00020821,2]
[386706285,1758463850606,-851.72,0.00020821,2]
[386706286,1758463850615,-421.21,0.00020821,2]
[386706287,1758463850625,-1058.66,0.00020821,2]
[386706288,1758463850635,-8085.83,0.00020821,2]
[386706289,1758463850645,-480.0,0.00020821,2]
[386706290,1758463850654,-480.0,0.00020821,2]
[386706291,1758463850664,-480.0,0.00020821,2]
[386706292,1758463850673,-901.07,0.00020821,2]
[386706293,1758463850682,-403.02434918,0.00020821,2]
[386706294,1758463850691,-480.0,0.00020821,2]
[386706295,1758463850700,-480.0,0.00020821,2]
[386706296,1758463850710,-480.0,0.00020821,2]
[386706297,1758463850720,-526.81,0.00020821,2]
[386706298,1758463850729,-548.72,0.00020821,2]
[386706299,1758463850739,-480.0,0.00020821,2]
[386706300,1758463850748,-852.81,0.00020821,2]
[386706301,1758463850757,-480.0,0.00020821,2]
[386706302,1758463850766,-480.0,0.00020821,2]
[386706303,1758463850776,-480.0,0.00020821,2]
[386706304,1758463850785,-480.0,0.00020821,2]
[386706305,1758463850794,-480.0,0.00020821,2]
[386706306,1758463850804,-480.0,0.00020821,2]
[386706307,1758463850814,-480.0,0.00020821,2]
[386706308,1758463850823,-480.0,0.00020821,2]
[386706309,1758463850833,-489.40625007,0.00020821,2]
[386706310,1758463850845,-1362.79,0.00020821,2]
[386706311,1758463850855,-470.44834112,0.00020821,2]
[386706312,1758463850864,-480.0,0.00020821,2]
[386706313,1758463850875,-480.0,0.00020821,2]
[386706314,1758463850884,-480.0,0.00020821,2]
[386706315,1758463850895,-480.0,0.00020821,2]
[386706316,1758463850904,-973.64,0.00020821,2]
[386706317,1758463850914,-480.0,0.00020821,2]
[386706318,1758463850924,-1796.23,0.00020821,2]
[386706319,1758463850933,-760.49,0.00020821,2]
[386706320,1758463850942,-591.24,0.00020821,2]
[386706322,1758463850952,-1269.68,0.00020821,2]
[386706324,1758463850962,-1903.0,0.00020821,2]
[386706325,1758463850972,-757.23,0.00020821,2]
[386706327,1758463850981,-480.0,0.00020821,2]
[386706329,1758463850990,-480.0,0.00020821,2]
[386706330,1758463851000,-480.0,0.00020821,2]
[386706332,1758463851009,-480.0,0.00020821,2]
[386706333,1758463851019,-2787.44,0.00020821,2]
[386706334,1758463851028,-423.06445261,0.00020821,2]
[386706335,1758463851037,-480.0,0.00020821,2]
[386706336,1758463851047,-480.0,0.00020821,2]
[386706337,1758463851056,-480.0,0.00020821,2]
[386706338,1758463851066,-440.52367794,0.00020821,2]
[386706339,1758463851075,-480.0,0.00020821,2]